[Event "26th OIBM 2023"]
[Site "Gmund am Tegernsee"]
[Date "2023.11.05"]
[Round "9.43"]
[White "Klings, Peter"]
[Black "Weber, Samuel"]
[Result "1/2-1/2"]
[ECO "A30"]
[WhiteElo "2045"]
[BlackElo "2267"]
[Annotator "RC"]
[PlyCount "77"]
[EventDate "2023.10.04"]
[EventType "swiss"]
[EventCountry "GER"]
[SourceTitle "playchess.com"]
[Source "ChessBase"]
[SourceQuality "1"]
[TimeControl "40/5400+30:1800+30"]

1. Nf3 {[%emt 0:00:04]} Nf6 {[%emt 0:01:14]} 2. c4 {[%emt 0:00:12]} b6 {[%emt 0:01:01]} 3. g3 {[%emt 0:01:54]} Bb7 {[%emt 0:01:13]} 4. Bg2 {[%emt 0:00:07]} e6 {[%emt 0:00:07]} 5. O-O {[%emt 0:00:06]} c5 {[%emt 0:00:07]} 6. Nc3 {[%emt 0:00:58]} Be7 {[%emt 0:02:51]} 7. Re1 {[%emt 0:00:32]} d6 {[%emt 0:01:23]} 8. e4 {[%emt 0:00:28]} a6 {[%emt 0:02:57]} 9. d4 {[%emt 0:03:59]} cxd4 {[%emt 0:00:10]} 10. Qxd4 {[%emt 0:01:54]} Nc6 {[%emt 0:02:23]} 11. Qd2 {[%emt 0:09:33]} Ne5 {[%emt 0:01:15]} 12. b3 {[%emt 0:02:59]} Nxf3+ {[%emt 0:01:45]} 13. Bxf3 {[%emt 0:00:03]} O-O {[%emt 0:03:35]} 14. Ba3 {[%emt 0:04:45]} Qc7 {[%emt 0:01:51]} 15. Rac1 {[%emt 0:15:31]} Rac8 {[%emt 0:02:25]} 16. Qe3 {[%emt 0:00:20]} Nd7 {[%emt 0:04:51]} 17. Na4 {[%emt 0:02:29]} Rfe8 {[%emt 0:05:11]} 18. Bg2 {[%emt 0:01:26]} h6 {[%emt 0:00:52]} 19. h4 {[%emt 0:03:26]} Bc6 {[%emt 0:06:50]} 20. Nc3 {[%emt 0:00:14]} Qb8 {[%emt 0:00:06]} 21. Red1 {[%emt 0:06:41]} Nc5 {[%emt 0:05:52]} 22. b4 {[%emt 0:07:54]} Na4 {[%emt 0:14:15]} 23. b5 {[%emt 0:09:56]} Nxc3 {[%emt 0:02:53]} 24. Rxc3 {[%emt 0:00:18]} axb5 {[%emt 0:07:41]} 25. cxb5 {[%emt 0:00:34]} Bxb5 {[%emt 0:03:32]} 26. Rxc8 {[%emt 0:04:02]} Qxc8 {[%emt 0:01:05]} 27. Bxd6 {[%emt 0:05:22]} Bxd6 {[%emt 0:07:22]} 28. Rxd6 {[%emt 0:00:34]} Qc5 {[%emt 0:01:25]} 29. Qxc5 {[%emt 0:07:05]} bxc5 {[%emt 0:02:31]} 30. Bf1 {[%emt 0:00:46]} Bxf1 {[%emt 0:03:08]} 31. Kxf1 {[%emt 0:00:01]} Ra8 {[%emt 0:00:26]} 32. Rc6 {[%emt 0:01:06]} Rxa2 {[%emt 0:00:03]} 33. Rxc5 {[%emt 0:00:07]} Ra4 {[%emt 0:00:03]} 34. f3 {[%emt 0:02:05]} g6 {[%emt 0:00:21]} 35. Rc2 {[%emt 0:01:20]} Kg7 {[%emt 0:00:13]} 36. Kf2 {[%emt 0:00:02]} g5 {[%emt 0:00:50]} 37. hxg5 {[%emt 0:00:59]} hxg5 {[%emt 0:00:11]} 38. Rc5 {[%emt 0:01:15]} Kf6 {[%emt 0:00:06]} 39. g4 {[%emt 0:00:53]} 1/2-1/2

[Event "26th OIBM 2023"]
[Site "Gmund am Tegernsee"]
[Date "2023.11.05"]
[Round "9.44"]
[White "Deglmann, Ludwig"]
[Black "Kroneder, Christian"]
[Result "1-0"]
[ECO "A11"]
[WhiteElo "2243"]
[BlackElo "2042"]
[Annotator "RC"]
[PlyCount "49"]
[EventDate "2023.10.04"]
[EventType "swiss"]
[EventCountry "GER"]
[SourceTitle "playchess.com"]
[Source "ChessBase"]
[SourceQuality "1"]
[TimeControl "40/5400+30:1800+30"]

1. c4 {[%emt 0:00:25]} c6 {[%emt 0:00:39]} 2. Nf3 {[%emt 0:00:17]} d5 {[%emt 0:01:05]} 3. e3 {[%emt 0:00:08]} Nf6 {[%emt 0:00:59]} 4. Nc3 {[%emt 0:01:41]} e6 {[%emt 0:02:34]} 5. b3 {[%emt 0:02:31]} Nbd7 {[%emt 0:01:58]} 6. Qc2 {[%emt 0:00:41]} Bd6 {[%emt 0:02:08]} 7. Bb2 {[%emt 0:02:20]} O-O {[%emt 0:00:35]} 8. Be2 {[%emt 0:00:33]} b6 {[%emt 0:12:52]} 9. g4 {[%emt 0:01:52]} Nxg4 {[%emt 0:11:21]} 10. Rg1 {[%emt 0:01:20]} f5 {[%emt 0:02:00]} 11. h3 {[%emt 0:09:01]} Ngf6 {[%emt 0:05:07]} 12. Nd4 {[%emt 0:05:48]} Ne5 {[%emt 0:04:22]} 13. f4 {[%emt 0:02:43]} Ng6 {[%emt 0:04:53]} 14. Nxc6 {[%emt 0:04:59]} Qd7 {[%emt 0:03:23]} 15. cxd5 {[%emt 0:03:21]} Bb7 {[%emt 0:06:10]} 16. Bf3 {[%emt 0:10:42]} exd5 {[%emt 0:07:21]} 17. Nd4 {[%emt 0:14:40]} Rac8 {[%emt 0:04:19]} 18. Qxf5 {[%emt 0:01:38]} Qf7 {[%emt 0:03:36]} 19. Qe6 {[%emt 0:05:00]} Qxe6 {[%emt 0:01:16]} 20. Nxe6 {[%emt 0:03:06]} Rfe8 {[%emt 0:00:13]} 21. f5 {[%emt 0:01:53]} Ne5 {[%emt 0:01:13]} 22. Rxg7+ {[%emt 0:03:22]} Kh8 {[%emt 0:00:01]} 23. Rxb7 {[%emt 0:00:26]} Nxf3+ {[%emt 0:00:12]} 24. Ke2 {[%emt 0:02:14]} Ne5 {[%emt 0:04:31]} 25. Nb5 {[%emt 0:01:41]} 1-0